fUSD/lending_fUSD_20260318
["ID","MTS","AMOUNT","RATE_DAILY","PERIOD"]
[408526798,1773829831892,-923.0,0.00016259,2]
[408526799,1773829831901,-1215.0,0.00016259,2]
[408526800,1773829831911,-1896.2669529,0.00016259,2]
[408526801,1773829831927,-585.39195199,0.00016259,2]
[408526802,1773829831938,-466.53590046,0.00016259,2]
[408526803,1773829831981,-412.77728069,0.00016259,2]
[408526804,1773829831992,-778.30235021,0.00016259,2]
[408526805,1773829832036,-309.88642084,0.00016259,2]
[408526806,1773829832048,-387.105,0.00016259,2]
[408526807,1773829832059,-1168.73414291,0.00016259,2]
[408526808,1773829832068,-446.4112236,0.00016259,2]
[408526809,1773829832079,-897.5887764,0.00016259,2]
[408526810,1773829832089,-500.0,0.00016305,2]
[408526812,1773829832101,-164.09966595,0.00016325,2]
[408526822,1773829837940,-1186.20542319,0.00016325,2]
[408526823,1773829837951,-1386.35636678,0.00016325,2]
[408526824,1773829837965,-228.33854408,0.00016325,2]
[408526825,1773829837974,-500.0,0.0001636,2]
[408526826,1773829837984,-500.0,0.00016438,2]
[408526827,1773829837994,-579.5202284,0.0001652,2]
[408526828,1773829838007,-422.55578884,0.0001652,2]
[408526829,1773829838017,-1553.5393775,0.0001652,2]
[408526830,1773829838030,-84.2506225,0.0001652,2]
[408526831,1773829838042,-1852.42,0.00016557,2]
[408526832,1773829838053,-1484.43534801,0.00016587,2]
[408526833,1773829838064,-2743.89484023,0.00016587,2]
[408526834,1773829838076,-200.0,0.00016639,2]
[408526835,1773829838087,-2000.0,0.00016647,2]
[408526836,1773829838097,-348.42,0.00016656,2]
[408526837,1773829838106,-536.0,0.000167,2]
[408526838,1773829838116,-166.78,0.00016712,2]
[408526839,1773829838126,-1400.244,0.00016762,2]
[408526840,1773829838135,-172.08771913,0.00016762,2]
[408526841,1773829838145,-5402.48144064,0.00016797,2]
[408526842,1773829838169,-101.47855936,0.00016797,2]
[408526843,1773829838178,-199.75022365,0.00016899,2]
[408526844,1773829838309,-300.24977635,0.00016899,2]
[408526845,1773829838319,-354.43194097,0.00016899,2]
[408526846,1773829838328,-231.7555346,0.00016899,2]
[408526847,1773829838337,-500.0,0.00016899,2]
[408526848,1773829838346,-350.0,0.00016997,3]
[408526849,1773829838355,-150.0,0.00017071,2]
[408526850,1773829838365,-150.0,0.00017071,2]
[408526852,1773829838375,-150.0,0.00017071,2]
[408526853,1773829838384,-150.0,0.00017071,2]
[408526854,1773829838394,-150.0,0.00017071,2]
[408526855,1773829838405,-250.0,0.00017071,2]
[408526856,1773829838416,-150.0,0.00017071,2]
[408526858,1773829838425,-150.0,0.00017071,2]
[408526860,1773829838434,-150.0,0.00017071,2]
[408526862,1773829838444,-150.0,0.00017071,2]
[408526864,1773829838452,-150.0,0.00017071,2]
[408526866,1773829838461,-250.0,0.00017071,2]
[408526868,1773829838470,-2500.0,0.00017345,2]
[408526869,1773829838479,-2500.0,0.00017345,2]
[408526871,1773829838489,-2500.0,0.00017345,2]
[408526872,1773829838500,-2500.0,0.00017345,2]
[408526874,1773829838509,-2500.0,0.00017345,2]
[408526876,1773829838519,-8773.94400792,0.00017373,2]
[408526880,1773829838545,-678.05599208,0.00017373,2]
[408526882,1773829838554,-150.0,0.00017398,2]
[408526884,1773829838563,-429.63101363,0.00017399,2]
[408527066,1773829840311,-70.36898637,0.00017399,2]
[408527068,1773829840321,-390.67811507,0.00017399,2]
[408527074,1773829840365,-109.32188493,0.00017399,2]
[408527076,1773829840374,-348.42,0.00017489,2]
[408527078,1773829840383,-168.0,0.00017539,2]
[408527080,1773829840392,-500.0,0.00017541,2]
[408527082,1773829840402,-168.0,0.00017541,2]
[408527084,1773829840411,-726.17324862,0.0001755,2]
[408527114,1773829840682,-179.21862138,0.0001755,2]
[408527116,1773829840691,-364.98536102,0.0001755,2]
[408527245,1773829845857,-3512.0,0.00016389,2]
[408527246,1773829845867,-506.24823846,0.0001755,2]
[408527247,1773829846136,-34.15827052,0.0001755,2]
[408527248,1773829846147,-1149.59948181,0.00017564,2]
[408527249,1773829846178,-1189.4148676,0.00017564,2]
[408527257,1773830168415,-1044.0,0.00016389,2]
[408527258,1773830168452,-2465.0,0.00016389,2]
[408527259,1773830168528,-2982.01,0.00016389,2]
[408527260,1773830171392,-10000.01,0.00016389,2]
[408527265,1773830478994,3384.0,0.00030136,120]
[408527266,1773830630815,-250.0,0.00015,2]
[408527267,1773830630844,-1061.06093607,0.00016061,2]
[408527268,1773830630872,-1065.98927314,0.00016061,2]
[408527269,1773830630900,-1086.5110976,0.00016061,2]
[408527270,1773830630928,-1063.13090528,0.00016061,2]
[408527271,1773830631038,-946.62557582,0.00016061,2]
[408527272,1773830636801,-201.75893581,0.00016061,2]
[408527273,1773830636842,-1085.27519661,0.00016061,2]
[408527274,1773830636881,-1119.84999189,0.00016061,2]
[408527275,1773830636919,-1022.70862407,0.00016061,2]
[408527276,1773830636961,-1127.21517836,0.00016061,2]
[408527277,1773830637090,-886.39414652,0.00016061,2]
[408527280,1773830967104,-1438.12,0.00013737,2]
[408527282,1773831032070,-250.0,0.00015111,2]
[408527283,1773831032080,-12774.6359189,0.00016,7]
[408527284,1773831032090,-252.34081678,0.00016061,2]
[408527285,1773831032099,-1092.35175984,0.00016061,2]
[408527286,1773831032109,-1084.86846146,0.00016061,2]
[408527287,1773831032118,-1133.04147118,0.00016061,2]
[408527288,1773831032128,-1040.89585748,0.00016061,2]
[408527289,1773831032138,-1013.53567514,0.00016061,2]
[408527290,1773831032152,-1009.49911107,0.00016061,2]
[408527291,1773831032162,-1001.06205417,0.00016061,2]
[408527292,1773831032172,-1045.03591246,0.00016061,2]
[408527293,1773831032183,-1471.14741869,0.00016061,2]
[408527294,1773831032193,-1561.2259581,0.00016281,2]
[408527295,1773831032202,-858.495,0.00016289,2]
[408527296,1773831032211,-12762.1198,0.00016289,2]
[408527297,1773831032223,-1538.0,0.000164,2]
[408527298,1773831032233,-1344.0,0.00016406,2]
[408527299,1773831032242,-3512.0,0.00016406,2]
[408527300,1773831032252,-1044.0,0.00016406,2]
[408527301,1773831032262,-1215.0,0.00016406,2]
[408527302,1773831032272,-923.0,0.00016406,2]
[408527303,1773831032282,-1260.0,0.00016406,2]
[408527304,1773831032291,-2465.0,0.00016406,2]
[408527305,1773831032301,-414.0,0.00016406,2]
[408527306,1773831032311,-2560.7953,0.0001642,2]
[408527307,1773831032320,-2000.0,0.00016514,2]
[408527308,1773831032330,-864.89,0.00016551,2]
[408527309,1773831032341,-979.16666667,0.00016609,2]
[408527310,1773831032350,-200.0,0.00016622,2]
[408527313,1773831032625,-150.0,0.00016629,2]
[408527314,1773831032635,-999.68,0.00016693,2]
[408527315,1773831032645,-200.0,0.00016736,2]
[408527316,1773831032655,-1026.3022152,0.00016844,2]
[408527317,1773831032664,-1803.908,0.00016878,2]
[408527318,1773831032674,-172.086,0.00016878,2]
[408527319,1773831032683,-500.0,0.00016878,2]
[408527320,1773831032692,-500.0,0.00016878,2]
[408527321,1773831032702,-504.32218719,0.00016878,2]
[408527322,1773831032716,-500.0,0.00016878,2]
[408527323,1773831032727,-500.0,0.00016878,2]
[408527324,1773831032737,-500.0,0.00016878,2]
[408527325,1773831032746,-500.0,0.00016878,2]
[408527326,1773831032755,-322.75686492,0.00016878,2]
[408527327,1773831032766,-500.0,0.00016878,2]
[408527328,1773831032775,-500.0,0.00016878,2]
[408527329,1773831032784,-434.47795526,0.00016878,2]
[408527330,1773831032795,-500.0,0.00016951,2]
[408527331,1773831032807,-150.0,0.00016951,2]
[408527332,1773831032816,-295.39810934,0.00016951,2]
[408527333,1773831032825,-500.0,0.00016951,2]
[408527334,1773831032834,-500.0,0.00016951,2]
[408527335,1773831032843,-550.79970363,0.00016951,2]
[408527336,1773831032855,-500.0,0.00016951,2]
[408527337,1773831032865,-500.0,0.00016951,2]
[408527338,1773831032874,-500.0,0.00016951,2]
[408527339,1773831032883,-500.0,0.00016951,2]
[408527340,1773831032892,-500.0,0.00016951,2]
[408527341,1773831032904,-597.01723179,0.00016951,2]
[408527342,1773831032913,-500.0,0.00016951,2]
[408527343,1773831032923,-500.0,0.00016951,2]
[408527344,1773831032932,-500.0,0.00016951,2]
[408527345,1773831032942,-150.37503432,0.00016951,2]
[408527346,1773831032952,-4583.7136356,0.00016958,2]
[408527347,1773831032961,-156.67763,0.00016958,2]
[408527348,1773831032970,-168.0,0.00017031,2]
[408527349,1773831032980,-168.0,0.00017128,2]
[408527350,1773831032989,-168.0,0.00017129,2]
[408527351,1773831032998,-150.0,0.00017141,2]
[408527352,1773831033009,-302.0886168,0.00017142,2]
[408527353,1773831033018,-168.0,0.00017142,2]
[408527354,1773831033027,-168.0,0.00017152,2]
[408527355,1773831033037,-800.0,0.000172,6]
[408527356,1773831033047,-166.66,0.00017225,2]
[408527357,1773831033057,-150.0,0.0001729,2]
[408527358,1773831033067,-150.0,0.0001729,2]
[408527359,1773831033076,-150.0,0.0001729,2]
[408527360,1773831033086,-158.80130543,0.0001729,2]
[408527361,1773831033095,-1700.0,0.000173,6]
[408527362,1773831033105,-168.0,0.00017339,2]
[408527363,1773831033114,-168.0,0.00017359,2]
[408527364,1773831033124,-2600.0,0.000174,6]
[408527365,1773831033135,-168.0,0.00017412,2]
[408527366,1773831033148,-168.0,0.00017425,2]
[408527367,1773831033157,-168.0,0.00017484,2]
[408527368,1773831033168,-406.95,0.00017489,2]
[408527369,1773831033178,-3500.0,0.000175,6]
[408527370,1773831033190,-300.0,0.00017541,2]
[408527371,1773831033200,-160.0,0.00017542,7]
[408527372,1773831033209,-261.681776,0.00017542,7]
[408527373,1773831033221,-363.363553,0.00017542,7]
[408527374,1773831033231,-399.459986,0.00017542,7]
[408527375,1773831033240,-603.59458,0.0001755,2]
[408527376,1773831033250,-603.59458,0.0001755,2]
[408527377,1773831033261,-4201.98565059,0.00017564,2]
[408527378,1773831033270,-1978.83105975,0.00017564,2]
[408527379,1773831033279,-151.0,0.00017564,2]
[408527380,1773831033289,-151.0,0.00017564,2]
[408527381,1773831033308,-300.0,0.00017564,2]
[408527382,1773831033317,-168.0,0.00017565,2]
[408527383,1773831033327,-381.20270533,0.00017566,2]
[408527384,1773831033338,-200.0,0.00017586,2]
[408527385,1773831033348,-168.0,0.00017587,2]
[408527386,1773831033357,-168.0,0.00017595,2]
[408527387,1773831033366,-2000.0,0.000176,2]
[408527388,1773831033376,-2500.0,0.000176,2]
[408527389,1773831033386,-2500.0,0.000176,2]
[408527390,1773831033395,-2500.0,0.000176,2]
[408527391,1773831033406,-2500.0,0.000176,2]
[408527392,1773831033416,-2500.0,0.000176,2]
[408527393,1773831033426,-4400.0,0.000176,6]
[408527394,1773831033435,-150.0,0.00017625,2]
[408527395,1773831033444,-152.85404086,0.00017625,2]
[408527396,1773831033454,-168.0,0.00017626,2]
[408527397,1773831033464,-291.439977,0.00017639,7]
[408527398,1773831033473,-301.587675,0.00017639,7]
[408527399,1773831033483,-295.78199,0.0001764,7]
[408527400,1773831033492,-228.118205,0.0001764,7]
[408527401,1773831033501,-160.0,0.0001764,7]
[408527402,1773831033510,-252.924499,0.0001764,7]
[408527403,1773831033519,-345.848999,0.0001764,7]
[408527404,1773831033529,-300.0,0.00017667,2]
[408527405,1773831033538,-2500.0,0.000177,2]
[408527406,1773831033549,-800.0,0.000177,6]
[408527407,1773831033558,-603.59458,0.00017728,2]
[408527408,1773831033567,-603.59458,0.00017728,2]
[408527409,1773831033576,-603.59458,0.00017728,2]
[408527410,1773831033586,-603.59458,0.00017728,2]
[408527411,1773831033595,-1452.25766047,0.00017761,2]
[408527412,1773831033604,-1452.2576604,0.00017776,2]
[408527413,1773831033614,-500.0,0.00017782,2]
[408527414,1773831033624,-1452.2576604,0.00017792,2]
[408527415,1773831033634,-500.0,0.00017799,2]
[408527416,1773831033644,-500.0,0.00017799,2]
[408527417,1773831033653,-8741.4341,0.000178,2]
[408527418,1773831033663,-628.3172,0.000178,2]
[408527419,1773831033672,-2338.0,0.000178,2]
[408527420,1773831033681,-800.0,0.000178,6]
[408527421,1773831033690,-1452.2576604,0.00017807,2]
[408527422,1773831033700,-800.58759298,0.00017808,2]
[408527423,1773831033710,-167.28,0.00017811,2]
[408527424,1773831033719,-1365.02470814,0.0001782,10]
[408527425,1773831033728,-1452.2576604,0.00017823,2]
[408527426,1773831033738,-1013.08889554,0.00017838,2]
[408527427,1773831034132,-439.16876486,0.00017838,2]
[408527428,1773831034144,-1452.2576604,0.00017854,2]
[408527429,1773831034154,-203.0,0.00017861,2]
[408527430,1773831034163,-1452.2576604,0.00017869,2]
[408527431,1773831034172,-601.02760977,0.0001787,2]
[408527432,1773831034182,-400.0,0.0001787,2]
[408527433,1773831034192,-1452.2576604,0.00017885,2]
[408527434,1773831034201,-155.45790751,0.00017897,2]
[408527435,1773831034211,-500.0,0.00017899,2]
[408527436,1773831034221,-252.02113714,0.00017899,2]
[408527437,1773831034231,-500.0,0.00017899,2]
[408527438,1773831034240,-500.0,0.00017899,2]
[408527439,1773831034249,-4670.7954077,0.00017899,2]
[408527440,1773831034259,-4670.79540765,0.00017899,2]
[408527441,1773831034269,-4670.79540765,0.00017899,2]
[408527442,1773831034283,-4670.79540765,0.00017899,2]
[408527443,1773831034292,-4670.79540765,0.00017899,2]
[408527444,1773831034304,-1957.18123916,0.000179,2]
[408527445,1773831034315,-1534.43885254,0.000179,2]
[408527446,1773831034342,-1179.17531595,0.000179,2]
[408527447,1773831034351,-2354.44224827,0.000179,2]
[408527451,1773831038118,-1382.06179791,0.000179,2]
[408527452,1773831038173,-934.29136147,0.000179,2]
[408527453,1773831038184,-501.86422336,0.000179,2]
[408527454,1773831038196,-2049.31567473,0.000179,2]
[408527455,1773831038208,-1350.20835412,0.000179,2]
[408527456,1773831038222,-413.67757765,0.000179,2]
[408527457,1773831038234,-355.72957779,0.000179,2]
[408527458,1773831038245,-3648.64251979,0.000179,2]
[408527459,1773831038258,-1022.15288786,0.000179,2]
[408527460,1773831038267,-302.57157996,0.000179,2]
[408527461,1773831038277,-302.57157995,0.000179,2]
[408527462,1773831038286,-302.57157995,0.000179,2]
[408527463,1773831038296,-302.57157995,0.000179,2]
[408527464,1773831038305,-268.53,0.000179,7]
[408527465,1773831038315,-162.251722,0.000179,2]
[408527466,1773831038325,-10000.0,0.000179,2]
[408527468,1773831038335,-295.909496,0.000179,2]
[408527470,1773831038344,-5000.0,0.000179,2]
[408527472,1773831038354,-1383.33644361,0.000179,2]
[408527474,1773831038364,-151.0,0.000179,2]
[408527475,1773831038374,-800.0,0.000179,6]
[408527476,1773831038385,-151.0,0.000179,2]
[408527478,1773831038395,-4670.79540765,0.000179,2]
[408527480,1773831038404,-2000.0,0.000179,2]
[408527483,1773831038414,-1841.52030948,0.000179,2]
[408527485,1773831038424,-25000.0,0.000179,3]
[408527487,1773831038433,-3497.97006946,0.000179,2]
[408527489,1773831038442,-1258.64505797,0.000179,2]
[408527491,1773831038452,-1452.2576604,0.000179,2]
[408527493,1773831038461,-500.0,0.00017947,2]
[408527495,1773831038470,-441.4798746,0.00017954,2]
[408527497,1773831038480,-400.0,0.0001797,2]
[408527499,1773831038489,-1964.0,0.00017973,2]
[408527501,1773831038499,-535.95738831,0.00017973,2]
[408527503,1773831038509,-500.0,0.00017973,2]
[408527505,1773831038518,-500.0,0.00017973,2]
[408527507,1773831038527,-500.0,0.00017973,2]
[408527509,1773831038536,-502.0414245,0.00017973,2]
[408527511,1773831038546,-505.74549276,0.00017973,2]
[408527513,1773831038555,-1036.24666311,0.0001799,2]
[408527515,1773831038564,-1036.24666311,0.0001799,2]
[408527517,1773831038574,-1036.24666311,0.0001799,2]
[408527519,1773831038583,-723.36,0.00017995,2]
[408527521,1773831038592,-246.611988,0.00017995,2]
[408527523,1773831038603,-246.611988,0.00017995,2]
[408527524,1773831038612,-246.611988,0.00017995,2]
[408527525,1773831038622,-246.611988,0.00017995,2]
[408527526,1773831038631,-151.0,0.00017995,2]
[408527527,1773831038641,-500.0,0.00017998,2]
[408527528,1773831038651,-500.0,0.00017998,2]
[408527529,1773831038660,-500.0,0.00017998,2]
[408527530,1773831038669,-500.0,0.00017998,2]
[408527531,1773831038679,-500.0,0.00017998,2]
[408527532,1773831038688,-500.0,0.00017998,2]
[408527533,1773831038697,-500.0,0.00017998,2]
[408527534,1773831038711,-500.0,0.00017998,2]
[408527535,1773831038721,-1047.31860186,0.00017998,5]
[408527536,1773831038731,-1168.76821552,0.00017998,5]
[408527537,1773831038741,-1151.278279,0.00017998,5]
[408527538,1773831038752,-500.0,0.00017998,2]
[408527539,1773831038762,-500.0,0.00017998,2]
[408527540,1773831038771,-984.00740849,0.00017999,2]
[408527541,1773831038781,-500.0,0.00017999,2]
[408527542,1773831038791,-516.9815428,0.00017999,2]
[408527543,1773831038800,-618.56636849,0.00017999,2]
[408527544,1773831038809,-514.11832696,0.00017999,2]
[408527545,1773831038819,-152621.78213067,0.00017999,2]
[408527546,1773831038829,-500.0,0.00017999,2]
[408527548,1773831038840,-500.0,0.00017999,2]
[408527549,1773831038849,-500.0,0.00017999,2]
[408527551,1773831038858,-500.0,0.00017999,2]
[408527553,1773831038867,-479.42632625,0.00017999,2]
[408527555,1773831038876,-156.89992437,0.00017999,2]
[408527557,1773831038886,-500.0,0.00017999,2]
[408527559,1773831038895,-500.0,0.00017999,2]
[408527561,1773831038904,-500.0,0.00017999,2]
[408527562,1773831038913,-500.0,0.00017999,2]
[408527564,1773831038923,-285.35781176,0.00017999,2]
[408527566,1773831038933,-500.0,0.00017999,2]
[408527568,1773831038942,-500.0,0.00017999,2]
[408527570,1773831038951,-500.0,0.00017999,2]
[408527572,1773831038960,-500.0,0.00017999,2]
[408527574,1773831038969,-500.0,0.00017999,2]
[408527576,1773831038979,-500.0,0.00017999,2]
[408527578,1773831038988,-500.0,0.00017999,2]
[408527580,1773831038998,-427.57565076,0.00017999,2]
[408527582,1773831039007,-500.0,0.00017999,2]
[408527584,1773831039017,-500.0,0.00017999,2]
[408527586,1773831039026,-500.0,0.00017999,2]
[408527588,1773831039036,-500.0,0.00017999,2]
[408527590,1773831039046,-500.0,0.00017999,2]
[408527592,1773831039055,-500.0,0.00017999,2]
[408527594,1773831039064,-497.5999203,0.00017999,2]
[408527596,1773831039074,-500.0,0.00017999,2]
[408527598,1773831039083,-500.0,0.00017999,2]
[408527600,1773831039093,-500.0,0.00017999,2]
[408527601,1773831039102,-500.0,0.00017999,2]
[408527602,1773831039111,-59983.8916729,0.00017999,2]
[408527603,1773831039124,-82.78292788,0.00017999,2]
[408527604,1773831039134,-500.0,0.00017999,2]
[408527605,1773831039151,-500.0,0.00017999,2]
[408527606,1773831039159,-500.0,0.00017999,2]
[408527607,1773831039168,-500.0,0.00017999,2]
[408527608,1773831039177,-500.0,0.00017999,2]
[408527609,1773831039188,-285.52,0.00017999,2]
[408527610,1773831039197,-300.0,0.00017999,2]
[408527611,1773831039206,-310.30278726,0.00017999,2]
[408527612,1773831039216,-248.35162739,0.00017999,2]
[408527614,1773831040504,-251.64837261,0.00017999,2]
[408527615,1773831040514,-500.0,0.00017999,2]
[408527616,1773831040524,-403.35162738,0.00017999,2]
[408527617,1773831040540,-96.64837262,0.00017999,2]
[408527618,1773831040550,-500.0,0.00017999,2]
[408527619,1773831040559,-228.83547222,0.00017999,2]
[408527630,1773831043174,-6005.0,0.00016406,2]
[408527631,1773831043184,-402.753008,0.00017542,7]
[408527632,1773831043195,-151.0,0.00017995,2]
[408527633,1773831043204,-271.16452778,0.00017999,2]
[408527634,1773831043214,-500.0,0.00017999,2]
[408527635,1773831043225,-500.0,0.00017999,2]
[408527636,1773831043234,-647.66009207,0.00017999,2]
[408527637,1773831043243,-246.611988,0.00017999,2]
[408527638,1773831043252,-246.611988,0.00017999,2]
[408527639,1773831043261,-246.611988,0.00017999,2]
[408527640,1773831043271,-246.611988,0.00017999,2]
[408527641,1773831043279,-300.0,0.00017999,2]
[408527642,1773831043288,-151.0,0.00017999,2]
[408527643,1773831043299,-151.0,0.00017999,2]
[408527644,1773831043309,-151.0,0.00017999,2]
[408527645,1773831043318,-151.0,0.00017999,2]
[408527646,1773831043328,-151.0,0.00017999,2]
[408527647,1773831043337,-151.0,0.00017999,2]
[408527648,1773831043347,-232.74760742,0.00017999,2]
[408527649,1773831043358,-95.35686666,0.00017999,2]
[408527650,1773831043377,-106.4984074,0.00017999,2]
[408527651,1773831043387,-500.0,0.00017999,2]
[408527653,1773831043396,-500.0,0.00017999,2]
[408527654,1773831043405,-500.0,0.00017999,2]
[408527655,1773831043415,-324.72839828,0.00017999,2]
[408527656,1773831043424,-154.4818531,0.00017999,2]
[408527657,1773831043434,-500.0,0.00017999,2]
[408527658,1773831043444,-500.0,0.00017999,2]
[408527659,1773831043453,-500.0,0.00017999,2]
[408527660,1773831043463,-197.56454924,0.00017999,2]
[408527661,1773831043472,-500.0,0.00017999,2]
[408527662,1773831043482,-500.0,0.00017999,2]
[408527663,1773831043491,-500.0,0.00017999,2]
[408527665,1773831043501,-265.54691525,0.00017999,2]
[408527666,1773831043510,-500.0,0.00017999,2]
[408527667,1773831043519,-500.0,0.00017999,2]
[408527668,1773831043528,-500.0,0.00017999,2]
[408527669,1773831043537,-243.14954281,0.00017999,2]
[408527670,1773831043546,-500.0,0.00017999,2]
[408527671,1773831043555,-500.0,0.00017999,2]
[408527673,1773831043564,-500.0,0.00017999,2]
[408527674,1773831043574,-598.36600003,0.00017999,2]
[408527676,1773831043583,-500.0,0.00017999,2]
[408527678,1773831043592,-317.57051635,0.00017999,2]
[408527679,1773831043602,-500.0,0.00017999,2]
[408527681,1773831043610,-511.48839422,0.00017999,2]
[408527683,1773831043621,-500.0,0.00017999,2]
[408527684,1773831043630,-500.0,0.00017999,2]
[408527686,1773831043639,-500.0,0.00017999,2]
[408527688,1773831043650,-500.0,0.00017999,2]
[408527689,1773831043661,-233.26897188,0.00017999,2]
[408527690,1773831043671,-500.0,0.00017999,2]
[408527691,1773831043682,-500.0,0.00017999,2]
[408527692,1773831043691,-500.0,0.00017999,2]
[408527693,1773831043702,-500.0,0.00017999,2]
[408527694,1773831043715,-500.0,0.00017999,2]
[408527695,1773831043725,-500.0,0.00017999,2]
[408527696,1773831043736,-500.0,0.00017999,2]
[408527697,1773831043746,-500.0,0.00017999,2]
[408527698,1773831043756,-500.0,0.00017999,2]
[408527699,1773831043766,-500.0,0.00017999,2]
[408527700,1773831043776,-500.0,0.00017999,2]
[408527701,1773831043787,-500.0,0.00017999,2]
[408527702,1773831043796,-500.0,0.00017999,2]
[408527703,1773831043805,-500.0,0.00017999,2]
[408527704,1773831043816,-500.0,0.00017999,2]
[408527705,1773831043827,-500.0,0.00017999,2]
[408527706,1773831043838,-500.0,0.00017999,2]
[408527707,1773831043847,-500.0,0.00017999,2]
[408527708,1773831043857,-500.0,0.00017999,2]
[408527709,1773831043866,-500.0,0.00017999,2]
[408527710,1773831043876,-500.0,0.00017999,2]
[408527711,1773831043886,-500.0,0.00017999,2]
[408527712,1773831043895,-500.0,0.00017999,2]
[408527713,1773831044059,-500.0,0.00017999,2]
[408527714,1773831044071,-500.0,0.00017999,2]
[408527715,1773831044081,-500.0,0.00017999,2]
[408527716,1773831044091,-500.0,0.00017999,2]
[408527717,1773831044100,-500.0,0.00017999,2]
[408527718,1773831044109,-500.0,0.00017999,2]
[408527719,1773831044118,-500.0,0.00017999,2]
[408527720,1773831044128,-500.0,0.00017999,2]
[408527721,1773831044137,-500.0,0.00017999,2]
[408527722,1773831044149,-500.0,0.00017999,2]
[408527723,1773831044158,-500.0,0.00017999,2]
[408527724,1773831044170,-500.0,0.00017999,2]
[408527725,1773831044181,-500.0,0.00017999,2]
[408527726,1773831044191,-500.0,0.00017999,2]
[408527727,1773831044200,-500.0,0.00017999,2]
[408527728,1773831044209,-500.0,0.00017999,2]
[408527729,1773831044220,-500.0,0.00017999,2]
[408527730,1773831044229,-500.0,0.00017999,2]
[408527731,1773831044239,-500.0,0.00017999,2]
[408527732,1773831044247,-500.0,0.00017999,2]
[408527733,1773831044256,-500.0,0.00017999,2]
[408527734,1773831044265,-500.0,0.00017999,2]
[408527735,1773831044274,-500.0,0.00017999,2]
[408527736,1773831044283,-500.0,0.00017999,2]
[408527737,1773831044293,-500.0,0.00017999,2]
[408527738,1773831044302,-500.0,0.00017999,2]
[408527739,1773831044311,-512.2598741,0.00017999,2]
[408527740,1773831044320,-992.0,0.00018,5]
[408527741,1773831044330,-1299.0,0.00018,5]
[408527742,1773831044340,-1290.0,0.00018,5]
[408527743,1773831044349,-118105.60628942,0.00018,2]
[408527744,1773831044679,-19779.99999996,0.00018,2]
[408527745,1773831046055,-18973.74619042,0.00018,2]
[408527746,1773831046066,-529.57114878,0.00018,2]
[408527747,1773831046077,-323.42885122,0.00018,2]
[408527748,1773831046525,-11555.0,0.00018,2]
[408527750,1773831096308,-1990.097,0.00015857,2]
[408527751,1773831096352,-172.086,0.00015857,2]
[408527752,1773831096391,-255.0,0.0001618,2]
[408527753,1773831096497,-5165.644,0.00016181,2]
[408527757,1773831525019,-4991.14276766,0.00015,2]
[408527758,1773831525046,-17.72446468,0.00015,2]
[408527759,1773831540900,-762.23,0.00015764,2]
[408527760,1773831594378,5000.01,0.0001199,2]
[408527761,1773831601651,-1200.0,0.00011989,2]
[408527763,1773831608579,-10000.01,0.0001199,2]
[408527764,1773831609145,-1649.8065864,0.0001199,2]
[408527765,1773831614583,-480.0,0.00013188,2]
[408527766,1773831649401,201.0,0.00030137,120]
[408527768,1773831726763,-209.05,0.0001553,2]
[408527769,1773831738004,2000.41841394,0.000155,5]
[408527773,1773831756123,5000.01,9.5e-05,3]
[408527774,1773831756147,10000.01,9.5e-05,3]